[Event "Titled Tuesday Blitz September 27 Early 2022"]
[White "Girel, Joseph"]
[Black "Pham, Khoi"]
[WhiteFideId "36033561"]
[BlackFideId "1054988"]
[WhiteElo "2104"]
[BlackElo "2443"]
[Result "1-0"]
[Round "01"]
[TimeControl "180+1"]
[Date "2022.09.27"]
[WhiteClock "0:02:04"]
[BlackClock "0:01:12"]

1. Nf3 {[%clk 0:03:00]}  f5 {[%clk 0:02:57]} 2. d3 {[%clk 0:02:59]}  Nc6 {[%clk 0:02:56]} 3. d4 {[%clk 0:02:58]}  e6 {[%clk 0:02:56]} 4. c4 {[%clk 0:02:57]}  Nf6 {[%clk 0:02:55]} 5. Nc3 {[%clk 0:02:57]}  d6 {[%clk 0:02:53]} 6. Bg5 {[%clk 0:02:56]}  Be7 {[%clk 0:02:53]} 7. e3 {[%clk 0:02:53]}  O-O {[%clk 0:02:53]} 8. Bd3 {[%clk 0:02:53]}  Qe8 {[%clk 0:02:50]} 9. O-O {[%clk 0:02:51]}  e5 {[%clk 0:02:48]} 10. dxe5 {[%clk 0:02:45]}  dxe5 {[%clk 0:02:49]} 11. Nd5 {[%clk 0:02:45]}  Nxd5 {[%clk 0:02:31]} 12. cxd5 {[%clk 0:02:44]}  e4 {[%clk 0:02:32]} 13. dxc6 {[%clk 0:02:42]}  exf3 {[%clk 0:02:16]} 14. Qb3+ {[%clk 0:02:34]}  Kh8 {[%clk 0:01:56]} 15. Bxe7 {[%clk 0:02:33]}  Qxe7 {[%clk 0:01:54]} 16. cxb7 {[%clk 0:02:33]}  Qg5 {[%clk 0:01:54]} 17. g3 {[%clk 0:02:30]}  Bxb7 {[%clk 0:01:28]} 18. Qxb7 {[%clk 0:02:31]}  Qh5 {[%clk 0:01:28]} 19. Rfc1 {[%clk 0:02:17]}  Rab8 {[%clk 0:01:26]} 20. Qxc7 {[%clk 0:02:15]}  Rxb2 {[%clk 0:01:26]} 21. Rc2 {[%clk 0:02:10]}  Rbb8 {[%clk 0:01:13]} 22. Rac1 {[%clk 0:02:08]}  Rbe8 {[%clk 0:01:12]} 23. Qf4 {[%clk 0:02:04]} 1-0


[Site "https://www.chess.com"]

[Event "Titled Tuesday Blitz September 27 Early 2022"]
[White "Hansen, Eric"]
[Black "Sellitti, Federico"]
[WhiteFideId "2606771"]
[BlackFideId "821829"]
[WhiteElo "2863"]
[BlackElo "2505"]
[Result "1/2-1/2"]
[Round "01"]
[TimeControl "180+1"]
[Date "2022.09.27"]
[WhiteClock "0:00:02"]
[BlackClock "0:00:21"]

1. d4 {[%clk 0:02:58]}  d5 {[%clk 0:02:59]} 2. c4 {[%clk 0:02:55]}  Nc6 {[%clk 0:03:00]} 3. Nc3 {[%clk 0:02:45]}  dxc4 {[%clk 0:03:00]} 4. d5 {[%clk 0:02:45]}  Na5 {[%clk 0:02:58]} 5. Qa4+ {[%clk 0:02:21]}  c6 {[%clk 0:02:57]} 6. b4 {[%clk 0:02:21]}  b5 {[%clk 0:02:52]} 7. Qxa5 {[%clk 0:02:12]}  Qxa5 {[%clk 0:02:53]} 8. bxa5 {[%clk 0:02:13]}  b4 {[%clk 0:02:54]} 9. Na4 {[%clk 0:02:07]}  cxd5 {[%clk 0:02:53]} 10. e4 {[%clk 0:02:04]}  e6 {[%clk 0:02:53]} 11. exd5 {[%clk 0:02:04]}  exd5 {[%clk 0:02:54]} 12. Be3 {[%clk 0:02:01]}  Nf6 {[%clk 0:02:55]} 13. O-O-O {[%clk 0:01:53]}  Bf5 {[%clk 0:02:54]} 14. Nf3 {[%clk 0:01:51]}  Be7 {[%clk 0:02:53]} 15. h3 {[%clk 0:01:45]}  O-O {[%clk 0:02:53]} 16. g4 {[%clk 0:01:42]}  Bg6 {[%clk 0:02:53]} 17. Ne5 {[%clk 0:01:40]}  Rfd8 {[%clk 0:02:38]} 18. Nc6 {[%clk 0:01:30]}  Re8 {[%clk 0:02:36]} 19. Nxe7+ {[%clk 0:01:30]}  Rxe7 {[%clk 0:02:37]} 20. g5 {[%clk 0:01:21]}  Ne4 {[%clk 0:02:29]} 21. Rxd5 {[%clk 0:01:17]}  Nxf2 {[%clk 0:02:11]} 22. Bxf2 {[%clk 0:01:09]}  Be4 {[%clk 0:02:11]} 23. Bxc4 {[%clk 0:01:09]}  Bxh1 {[%clk 0:02:11]} 24. Rd4 {[%clk 0:01:00]}  Rc8 {[%clk 0:02:05]} 25. Kd2 {[%clk 0:00:56]}  Re5 {[%clk 0:02:03]} 26. h4 {[%clk 0:00:47]}  Rxa5 {[%clk 0:02:01]} 27. Bb3 {[%clk 0:00:44]}  Rf5 {[%clk 0:01:41]} 28. Be3 {[%clk 0:00:43]}  Kf8 {[%clk 0:01:34]} 29. Rd7 {[%clk 0:00:33]}  Bc6 {[%clk 0:01:27]} 30. Rxa7 {[%clk 0:00:24]}  Rd8+ {[%clk 0:01:28]} 31. Kc2 {[%clk 0:00:17]}  Rf3 {[%clk 0:01:15]} 32. Bc5+ {[%clk 0:00:16]}  Kg8 {[%clk 0:01:16]} 33. Re7 {[%clk 0:00:10]}  Bxa4 {[%clk 0:01:10]} 34. Bxa4 {[%clk 0:00:10]}  Rc3+ {[%clk 0:01:11]} 35. Kb2 {[%clk 0:00:10]}  Rxc5 {[%clk 0:01:12]} 36. Bb3 {[%clk 0:00:11]}  Rf5 {[%clk 0:01:11]} 37. Re4 {[%clk 0:00:10]}  h6 {[%clk 0:01:10]} 38. g6 {[%clk 0:00:09]}  Rf2+ {[%clk 0:01:06]} 39. Kc1 {[%clk 0:00:09]}  Rf3 {[%clk 0:00:44]} 40. gxf7+ {[%clk 0:00:06]}  Kf8 {[%clk 0:00:43]} 41. Rxb4 {[%clk 0:00:07]}  Rxf7 {[%clk 0:00:41]} 42. Bxf7 {[%clk 0:00:06]}  Kxf7 {[%clk 0:00:42]} 43. a4 {[%clk 0:00:07]}  g5 {[%clk 0:00:38]} 44. hxg5 {[%clk 0:00:05]}  hxg5 {[%clk 0:00:39]} 45. a5 {[%clk 0:00:03]}  Ra8 {[%clk 0:00:22]} 46. Ra4 {[%clk 0:00:01]}  Ke6 {[%clk 0:00:23]} 47. Kd2 {[%clk 0:00:02]}  Kd5 {[%clk 0:00:23]} 48. Rg4 {[%clk 0:00:02]}  Kc5 {[%clk 0:00:22]} 49. Kc3 {[%clk 0:00:01]}  Rxa5 {[%clk 0:00:21]} 50. Rxg5+ {[%clk 0:00:02]}  Kb6 {[%clk 0:00:21]} 51. Rxa5 {[%clk 0:00:02]}  Kxa5 {[%clk 0:00:21]} 1/2-1/2


[Site "https://www.chess.com"]

[Event "Titled Tuesday Blitz September 27 Early 2022"]
[White "Huber, Benedikt"]
[Black "Wagner, Dennis"]
[WhiteFideId "12923583"]
[BlackFideId "24650684"]
[WhiteElo "1979"]
[BlackElo "2355"]
[Result "0-1"]
[Round "01"]
[TimeControl "180+1"]
[Date "2022.09.27"]
[WhiteClock "0:00:28"]
[BlackClock "0:01:59"]

1. d4 {[%clk 0:02:55]}  Nf6 {[%clk 0:02:59]} 2. Nc3 {[%clk 0:02:55]}  d5 {[%clk 0:02:58]} 3. Bf4 {[%clk 0:02:56]}  c5 {[%clk 0:02:58]} 4. e4 {[%clk 0:02:56]}  Nxe4 {[%clk 0:02:58]} 5. Nxe4 {[%clk 0:02:55]}  dxe4 {[%clk 0:02:59]} 6. dxc5 {[%clk 0:02:56]}  Qa5+ {[%clk 0:02:58]} 7. c3 {[%clk 0:02:56]}  Qxc5 {[%clk 0:02:58]} 8. Qa4+ {[%clk 0:02:57]}  Nc6 {[%clk 0:02:57]} 9. Qxe4 {[%clk 0:02:57]}  g6 {[%clk 0:02:58]} 10. Nf3 {[%clk 0:02:55]}  Bg7 {[%clk 0:02:58]} 11. Be2 {[%clk 0:02:49]}  O-O {[%clk 0:02:57]} 12. O-O {[%clk 0:02:49]}  Bf5 {[%clk 0:02:51]} 13. Qe3 {[%clk 0:02:49]}  Qxe3 {[%clk 0:02:50]} 14. Bxe3 {[%clk 0:02:50]}  Rfd8 {[%clk 0:02:50]} 15. Rfd1 {[%clk 0:02:50]}  e5 {[%clk 0:02:44]} 16. Nd2 {[%clk 0:02:25]}  Rd7 {[%clk 0:02:33]} 17. Nb3 {[%clk 0:02:18]}  Rad8 {[%clk 0:02:32]} 18. Rxd7 {[%clk 0:02:09]}  Rxd7 {[%clk 0:02:32]} 19. Nc5 {[%clk 0:02:10]}  Rc7 {[%clk 0:02:25]} 20. Bf3 {[%clk 0:02:00]}  Nd4 {[%clk 0:02:13]} 21. cxd4 {[%clk 0:00:45]}  exd4 {[%clk 0:02:14]} 22. Nxb7 {[%clk 0:00:45]}  dxe3 {[%clk 0:02:13]} 23. fxe3 {[%clk 0:00:46]}  Bxb2 {[%clk 0:02:13]} 24. Rd1 {[%clk 0:00:46]}  Bc1 {[%clk 0:02:08]} 25. e4 {[%clk 0:00:38]}  Be3+ {[%clk 0:02:03]} 26. Kf1 {[%clk 0:00:36]}  Be6 {[%clk 0:02:04]} 27. a3 {[%clk 0:00:28]}  Rxb7 {[%clk 0:01:59]} 0-1


[Site "https://www.chess.com"]

[Event "Titled Tuesday Blitz September 27 Early 2022"]
[White "Ibrahimli, Murad"]
[Black "Camacho Collados, Jose"]
[WhiteFideId "13410229"]
[BlackFideId "2265427"]
[WhiteElo "2830"]
[BlackElo "2493"]
[Result "1-0"]
[Round "01"]
[TimeControl "180+1"]
[Date "2022.09.27"]
[WhiteClock "0:01:45"]
[BlackClock "0:00:57"]

1. Nf3 {[%clk 0:02:59]}  b6 {[%clk 0:02:57]} 2. d4 {[%clk 0:02:53]}  Bb7 {[%clk 0:02:57]} 3. c4 {[%clk 0:02:53]}  e6 {[%clk 0:02:57]} 4. g3 {[%clk 0:02:52]}  Nf6 {[%clk 0:02:53]} 5. Bg2 {[%clk 0:02:50]}  Bb4+ {[%clk 0:02:53]} 6. Nbd2 {[%clk 0:02:49]}  O-O {[%clk 0:02:52]} 7. O-O {[%clk 0:02:48]}  Re8 {[%clk 0:02:52]} 8. a3 {[%clk 0:02:45]}  Bf8 {[%clk 0:02:52]} 9. Qc2 {[%clk 0:02:45]}  d6 {[%clk 0:02:52]} 10. e4 {[%clk 0:02:42]}  Nbd7 {[%clk 0:02:52]} 11. h3 {[%clk 0:02:06]}  c5 {[%clk 0:02:52]} 12. e5 {[%clk 0:02:04]}  Nh5 {[%clk 0:02:44]} 13. Ng5 {[%clk 0:01:59]}  Qxg5 {[%clk 0:02:40]} 14. Bxb7 {[%clk 0:01:59]}  Nxg3 {[%clk 0:02:33]} 15. fxg3 {[%clk 0:01:54]}  Qxg3+ {[%clk 0:02:34]} 16. Bg2 {[%clk 0:01:54]}  Qe3+ {[%clk 0:02:03]} 17. Kh1 {[%clk 0:01:54]}  dxe5 {[%clk 0:01:55]} 18. Ne4 {[%clk 0:01:51]}  Qxd4 {[%clk 0:01:39]} 19. Rd1 {[%clk 0:01:50]}  f5 {[%clk 0:01:38]} 20. Rxd4 {[%clk 0:01:50]}  exd4 {[%clk 0:01:39]} 21. Ng5 {[%clk 0:01:50]}  Rad8 {[%clk 0:01:34]} 22. Nxe6 {[%clk 0:01:50]}  Ne5 {[%clk 0:01:18]} 23. Nxd8 {[%clk 0:01:48]}  d3 {[%clk 0:01:17]} 24. Bd5+ {[%clk 0:01:48]}  Kh8 {[%clk 0:01:17]} 25. Qxd3 {[%clk 0:01:47]}  Nxd3 {[%clk 0:01:14]} 26. Nf7+ {[%clk 0:01:47]}  Kg8 {[%clk 0:01:15]} 27. Nd6+ {[%clk 0:01:48]}  Kh8 {[%clk 0:01:14]} 28. Nxe8 {[%clk 0:01:48]}  Be7 {[%clk 0:01:02]} 29. Bd2 {[%clk 0:01:45]}  g5 {[%clk 0:00:58]} 30. Bc3+ {[%clk 0:01:45]}  Bf6 {[%clk 0:00:57]} 31. Bxf6# {[%clk 0:01:45]} 1-0


[Site "https://www.chess.com"]

[Event "Titled Tuesday Blitz September 27 Early 2022"]
[White "Jakubowski, Krzysztof"]
[Black "Szente Varga, Fruzsina"]
[WhiteFideId "1112848"]
[BlackFideId "712264"]
[WhiteElo "2306"]
[BlackElo "1994"]
[Result "1-0"]
[Round "01"]
[TimeControl "180+1"]
[Date "2022.09.27"]
[WhiteClock "0:00:05"]
[BlackClock "0:00:04"]

1. e4 {[%clk 0:03:00]}  e6 {[%clk 0:02:59]} 2. d4 {[%clk 0:02:58]}  d5 {[%clk 0:02:58]} 3. Nc3 {[%clk 0:02:58]}  Bb4 {[%clk 0:02:47]} 4. e5 {[%clk 0:02:56]}  Ne7 {[%clk 0:02:45]} 5. a3 {[%clk 0:02:55]}  Bxc3+ {[%clk 0:02:43]} 6. bxc3 {[%clk 0:02:56]}  O-O {[%clk 0:02:43]} 7. h4 {[%clk 0:02:39]}  c5 {[%clk 0:02:41]} 8. h5 {[%clk 0:02:38]}  Nf5 {[%clk 0:02:22]} 9. g4 {[%clk 0:02:19]}  Nh6 {[%clk 0:02:06]} 10. Nf3 {[%clk 0:01:42]}  cxd4 {[%clk 0:01:52]} 11. cxd4 {[%clk 0:01:39]}  f6 {[%clk 0:01:36]} 12. Bxh6 {[%clk 0:01:32]}  gxh6 {[%clk 0:01:32]} 13. Qd2 {[%clk 0:01:28]}  Kg7 {[%clk 0:01:29]} 14. Rg1 {[%clk 0:01:15]}  Nc6 {[%clk 0:01:22]} 15. Be2 {[%clk 0:01:08]}  Bd7 {[%clk 0:00:58]} 16. Rb1 {[%clk 0:01:01]}  b6 {[%clk 0:00:52]} 17. Rb3 {[%clk 0:01:01]}  fxe5 {[%clk 0:00:38]} 18. dxe5 {[%clk 0:00:48]}  Rxf3 {[%clk 0:00:37]} 19. Rxf3 {[%clk 0:00:42]}  Qg5 {[%clk 0:00:29]} 20. Qxg5+ {[%clk 0:00:34]}  hxg5 {[%clk 0:00:30]} 21. Re3 {[%clk 0:00:26]}  Nd4 {[%clk 0:00:24]} 22. Kd2 {[%clk 0:00:22]}  Rc8 {[%clk 0:00:24]} 23. Bd1 {[%clk 0:00:22]}  Bb5 {[%clk 0:00:19]} 24. Rc3 {[%clk 0:00:20]}  Rf8 {[%clk 0:00:19]} 25. Rc7+ {[%clk 0:00:19]}  Kg8 {[%clk 0:00:19]} 26. Ke3 {[%clk 0:00:17]}  Nc6 {[%clk 0:00:17]} 27. Be2 {[%clk 0:00:14]}  Bxe2 {[%clk 0:00:16]} 28. Rxc6 {[%clk 0:00:14]}  Bc4 {[%clk 0:00:15]} 29. Rc7 {[%clk 0:00:09]}  Rf4 {[%clk 0:00:15]} 30. h6 {[%clk 0:00:09]}  Re4+ {[%clk 0:00:15]} 31. Kd2 {[%clk 0:00:09]}  Rxe5 {[%clk 0:00:15]} 32. Rg7+ {[%clk 0:00:08]}  Kh8 {[%clk 0:00:15]} 33. Rxa7 {[%clk 0:00:08]}  Kg8 {[%clk 0:00:16]} 34. Rg7+ {[%clk 0:00:07]}  Kh8 {[%clk 0:00:16]} 35. Rg3 {[%clk 0:00:08]}  Re2+ {[%clk 0:00:16]} 36. Kc3 {[%clk 0:00:07]}  Rxf2 {[%clk 0:00:17]} 37. Rb7 {[%clk 0:00:07]}  Rf8 {[%clk 0:00:16]} 38. Re3 {[%clk 0:00:07]}  Rc8 {[%clk 0:00:14]} 39. Kb4 {[%clk 0:00:07]}  d4 {[%clk 0:00:14]} 40. Rf3 {[%clk 0:00:06]}  Bd5 {[%clk 0:00:14]} 41. Rc7 {[%clk 0:00:04]}  Rd8 {[%clk 0:00:04]} 42. Rff7 {[%clk 0:00:04]}  e5 {[%clk 0:00:03]} 43. Rxh7+ {[%clk 0:00:04]}  Kg8 {[%clk 0:00:04]} 44. Rcg7+ {[%clk 0:00:04]}  Kf8 {[%clk 0:00:04]} 45. Rh8+ {[%clk 0:00:05]} 1-0


[Site "https://www.chess.com"]

[Event "Titled Tuesday Blitz September 27 Early 2022"]
[White "Janaszak, Dawid"]
[Black "Andreikin, Dmitry"]
[WhiteFideId "1119206"]
[BlackFideId "4158814"]
[WhiteElo "2165"]
[BlackElo "2736"]
[Result "1/2-1/2"]
[Round "01"]
[TimeControl "180+1"]
[Date "2022.09.27"]
[WhiteClock "0:00:07"]
[BlackClock "0:00:47"]

1. e4 {[%clk 0:03:00]}  c5 {[%clk 0:02:59]} 2. Nc3 {[%clk 0:02:58]}  a6 {[%clk 0:02:58]} 3. d4 {[%clk 0:02:56]}  cxd4 {[%clk 0:02:58]} 4. Qxd4 {[%clk 0:02:57]}  Nc6 {[%clk 0:02:57]} 5. Qd2 {[%clk 0:02:57]}  e6 {[%clk 0:02:54]} 6. Nf3 {[%clk 0:02:49]}  Qc7 {[%clk 0:02:47]} 7. b3 {[%clk 0:02:45]}  Nf6 {[%clk 0:02:47]} 8. Bb2 {[%clk 0:02:44]}  Bd6 {[%clk 0:02:47]} 9. g3 {[%clk 0:02:35]}  Bb4 {[%clk 0:02:47]} 10. Bd3 {[%clk 0:02:33]}  d5 {[%clk 0:02:46]} 11. exd5 {[%clk 0:02:28]}  exd5 {[%clk 0:02:46]} 12. a3 {[%clk 0:02:23]}  Ba5 {[%clk 0:02:37]} 13. b4 {[%clk 0:02:14]}  Bb6 {[%clk 0:02:37]} 14. O-O-O {[%clk 0:02:07]}  O-O {[%clk 0:02:37]} 15. Na4 {[%clk 0:02:04]}  Ne4 {[%clk 0:02:12]} 16. Bxe4 {[%clk 0:02:00]}  dxe4 {[%clk 0:02:13]} 17. Qc3 {[%clk 0:01:51]}  f6 {[%clk 0:02:10]} 18. Nxb6 {[%clk 0:01:49]}  Qxb6 {[%clk 0:02:09]} 19. Qc4+ {[%clk 0:01:48]}  Kh8 {[%clk 0:02:09]} 20. Qxe4 {[%clk 0:01:48]}  a5 {[%clk 0:02:06]} 21. b5 {[%clk 0:01:22]}  Qxb5 {[%clk 0:02:06]} 22. Rd5 {[%clk 0:01:23]}  Qb6 {[%clk 0:02:03]} 23. Rh5 {[%clk 0:01:21]}  h6 {[%clk 0:01:59]} 24. Nh4 {[%clk 0:01:02]}  Qxf2 {[%clk 0:01:58]} 25. Ng6+ {[%clk 0:01:00]}  Kg8 {[%clk 0:01:59]} 26. Nxf8 {[%clk 0:00:53]}  Kxf8 {[%clk 0:02:00]} 27. Re1 {[%clk 0:00:42]}  Bg4 {[%clk 0:01:57]} 28. Rd5 {[%clk 0:00:37]}  Bf3 {[%clk 0:01:55]} 29. Rf5 {[%clk 0:00:18]}  Bxe4 {[%clk 0:01:37]} 30. Rxf2 {[%clk 0:00:17]}  Bg6 {[%clk 0:01:34]} 31. Rd2 {[%clk 0:00:17]}  Rc8 {[%clk 0:01:26]} 32. Ree2 {[%clk 0:00:18]}  b5 {[%clk 0:01:21]} 33. Rd7 {[%clk 0:00:18]}  b4 {[%clk 0:01:22]} 34. axb4 {[%clk 0:00:17]}  Nxb4 {[%clk 0:01:21]} 35. Ba3 {[%clk 0:00:15]}  Bf5 {[%clk 0:01:12]} 36. Rb7 {[%clk 0:00:14]}  Rc4 {[%clk 0:01:08]} 37. Kb2 {[%clk 0:00:10]}  Kg8 {[%clk 0:01:05]} 38. Bxb4 {[%clk 0:00:09]}  axb4 {[%clk 0:01:06]} 39. Kb3 {[%clk 0:00:09]}  Rc3+ {[%clk 0:01:06]} 40. Kxb4 {[%clk 0:00:09]}  Rxc2 {[%clk 0:01:07]} 41. Rxc2 {[%clk 0:00:09]}  Bxc2 {[%clk 0:01:07]} 42. Kc5 {[%clk 0:00:09]}  Be4 {[%clk 0:01:07]} 43. Rc7 {[%clk 0:00:10]}  Kf8 {[%clk 0:00:47]} 44. Kd4 {[%clk 0:00:10]}  Bb1 {[%clk 0:00:46]} 45. Kd5 {[%clk 0:00:09]}  Ba2+ {[%clk 0:00:46]} 46. Kd6 {[%clk 0:00:08]}  Bb3 {[%clk 0:00:46]} 47. Rb7 {[%clk 0:00:08]}  Ba2 {[%clk 0:00:46]} 48. Ra7 {[%clk 0:00:08]}  Bb3 {[%clk 0:00:46]} 49. Rb7 {[%clk 0:00:06]}  Ba2 {[%clk 0:00:47]} 50. Ra7 {[%clk 0:00:07]}  Bb3 {[%clk 0:00:47]} 51. Rb7 {[%clk 0:00:07]} 1/2-1/2


[Site "https://www.chess.com"]

[Event "Titled Tuesday Blitz September 27 Early 2022"]
[White "Jiganchine, Roman"]
[Black "Niekras, Dawid"]
[WhiteFideId "2603667"]
[BlackFideId "1160451"]
[WhiteElo "2275"]
[BlackElo "2296"]
[Result "0-1"]
[Round "01"]
[TimeControl "180+1"]
[Date "2022.09.27"]
[WhiteClock "0:01:33"]
[BlackClock "0:01:51"]

1. Nf3 {[%clk 0:02:58]}  g6 {[%clk 0:03:00]} 2. e4 {[%clk 0:02:57]}  c5 {[%clk 0:02:59]} 3. c3 {[%clk 0:02:51]}  Bg7 {[%clk 0:02:59]} 4. d4 {[%clk 0:02:51]}  cxd4 {[%clk 0:03:00]} 5. cxd4 {[%clk 0:02:50]}  d5 {[%clk 0:03:00]} 6. e5 {[%clk 0:02:48]}  Bg4 {[%clk 0:03:00]} 7. Nc3 {[%clk 0:02:48]}  Nc6 {[%clk 0:02:45]} 8. Be3 {[%clk 0:02:46]}  e6 {[%clk 0:02:45]} 9. Be2 {[%clk 0:02:46]}  Nge7 {[%clk 0:02:44]} 10. h3 {[%clk 0:02:46]}  Bxf3 {[%clk 0:02:44]} 11. Bxf3 {[%clk 0:02:46]}  O-O {[%clk 0:02:42]} 12. O-O {[%clk 0:02:46]}  Nf5 {[%clk 0:02:35]} 13. Qe2 {[%clk 0:02:35]}  Nfxd4 {[%clk 0:02:34]} 14. Bxd4 {[%clk 0:02:30]}  Nxd4 {[%clk 0:02:35]} 15. Qd3 {[%clk 0:02:13]}  Nxf3+ {[%clk 0:02:35]} 16. Qxf3 {[%clk 0:02:13]}  Bxe5 {[%clk 0:02:35]} 17. Rad1 {[%clk 0:02:12]}  Qf6 {[%clk 0:02:33]} 18. Qd3 {[%clk 0:02:07]}  Bxc3 {[%clk 0:02:27]} 19. bxc3 {[%clk 0:02:06]}  Rac8 {[%clk 0:02:27]} 20. Rb1 {[%clk 0:02:06]}  b6 {[%clk 0:02:27]} 21. Qa6 {[%clk 0:02:05]}  Rc7 {[%clk 0:02:24]} 22. Rb3 {[%clk 0:02:01]}  Rfc8 {[%clk 0:02:19]} 23. a4 {[%clk 0:01:59]}  Qe7 {[%clk 0:02:15]} 24. Rc1 {[%clk 0:01:55]}  d4 {[%clk 0:01:58]} 25. c4 {[%clk 0:01:53]}  Rc5 {[%clk 0:01:53]} 26. Rd3 {[%clk 0:01:33]}  Qc7 {[%clk 0:01:51]} 0-1


[Site "https://www.chess.com"]

[Event "Titled Tuesday Blitz September 27 Early 2022"]
[White "Kalajzic, Ivan"]
[Black "Bykov, Egor"]
[WhiteFideId "14506378"]
[BlackFideId "34115290"]
[WhiteElo "2163"]
[BlackElo "2192"]
[Result "0-1"]
[Round "01"]
[TimeControl "180+1"]
[Date "2022.09.27"]
[WhiteClock "0:00:35"]
[BlackClock "0:00:25"]

1. b3 {[%clk 0:02:59]}  d5 {[%clk 0:02:58]} 2. Bb2 {[%clk 0:02:59]}  Nf6 {[%clk 0:02:58]} 3. e3 {[%clk 0:02:59]}  c6 {[%clk 0:02:59]} 4. Nf3 {[%clk 0:02:58]}  Bf5 {[%clk 0:02:59]} 5. d4 {[%clk 0:02:58]}  Nbd7 {[%clk 0:03:00]} 6. Bd3 {[%clk 0:02:58]}  e6 {[%clk 0:02:59]} 7. Nbd2 {[%clk 0:02:58]}  Bd6 {[%clk 0:02:55]} 8. O-O {[%clk 0:02:58]}  a5 {[%clk 0:02:52]} 9. Ne5 {[%clk 0:02:58]}  O-O {[%clk 0:02:49]} 10. f4 {[%clk 0:02:58]}  a4 {[%clk 0:02:38]} 11. g4 {[%clk 0:02:42]}  Bxd3 {[%clk 0:02:35]} 12. cxd3 {[%clk 0:02:42]}  Ne8 {[%clk 0:02:29]} 13. g5 {[%clk 0:02:36]}  a3 {[%clk 0:02:21]} 14. Bc3 {[%clk 0:02:35]}  Bxe5 {[%clk 0:02:05]} 15. dxe5 {[%clk 0:02:36]}  c5 {[%clk 0:02:01]} 16. Qh5 {[%clk 0:02:34]}  g6 {[%clk 0:01:55]} 17. Qh6 {[%clk 0:02:33]}  Ng7 {[%clk 0:01:56]} 18. Rf3 {[%clk 0:02:01]}  Nf5 {[%clk 0:01:55]} 19. Qh3 {[%clk 0:02:01]}  h5 {[%clk 0:01:38]} 20. e4 {[%clk 0:01:49]}  Nd4 {[%clk 0:01:19]} 21. Bxd4 {[%clk 0:01:48]}  cxd4 {[%clk 0:01:20]} 22. Qg2 {[%clk 0:01:42]}  Rc8 {[%clk 0:01:15]} 23. exd5 {[%clk 0:01:33]}  exd5 {[%clk 0:01:15]} 24. Re1 {[%clk 0:01:34]}  Re8 {[%clk 0:01:09]} 25. Nf1 {[%clk 0:01:29]}  Qa5 {[%clk 0:01:04]} 26. Rd1 {[%clk 0:01:17]}  Rc3 {[%clk 0:00:57]} 27. Rh3 {[%clk 0:01:14]}  Qc5 {[%clk 0:00:53]} 28. Ng3 {[%clk 0:01:05]}  Rc2 {[%clk 0:00:52]} 29. Qf3 {[%clk 0:01:03]}  Rxa2 {[%clk 0:00:35]} 30. Nxh5 {[%clk 0:01:03]}  Rc2 {[%clk 0:00:31]} 31. Nf6+ {[%clk 0:00:57]}  Nxf6 {[%clk 0:00:31]} 32. gxf6 {[%clk 0:00:58]}  Rc1 {[%clk 0:00:31]} 33. Rxc1 {[%clk 0:00:37]}  Qxc1+ {[%clk 0:00:32]} 34. Kg2 {[%clk 0:00:37]}  Qd2+ {[%clk 0:00:28]} 35. Kg3 {[%clk 0:00:35]}  Qe3 {[%clk 0:00:25]} 0-1


[Site "https://www.chess.com"]

[Event "Titled Tuesday Blitz September 27 Early 2022"]
[White "Kamsky, Gata"]
[Black "Forgacs, Attila Jr."]
[WhiteFideId "2000024"]
[BlackFideId "773654"]
[WhiteElo "2666"]
[BlackElo "2062"]
[Result "1-0"]
[Round "01"]
[TimeControl "180+1"]
[Date "2022.09.27"]
[WhiteClock "0:00:48"]
[BlackClock "0:00:04"]

1. e4 {[%clk 0:03:00]}  e5 {[%clk 0:02:56]} 2. Nf3 {[%clk 0:03:00]}  Nc6 {[%clk 0:02:56]} 3. Bb5 {[%clk 0:02:59]}  a6 {[%clk 0:02:56]} 4. Ba4 {[%clk 0:02:58]}  Nf6 {[%clk 0:02:55]} 5. O-O {[%clk 0:02:58]}  Be7 {[%clk 0:02:55]} 6. Re1 {[%clk 0:02:57]}  b5 {[%clk 0:02:54]} 7. Bb3 {[%clk 0:02:57]}  O-O {[%clk 0:02:55]} 8. c3 {[%clk 0:02:57]}  d5 {[%clk 0:02:55]} 9. d3 {[%clk 0:02:56]}  dxe4 {[%clk 0:02:49]} 10. dxe4 {[%clk 0:02:56]}  Qxd1 {[%clk 0:02:50]} 11. Bxd1 {[%clk 0:02:56]}  Bb7 {[%clk 0:02:48]} 12. a4 {[%clk 0:02:54]}  Rfd8 {[%clk 0:02:41]} 13. Nbd2 {[%clk 0:02:50]}  Bc5 {[%clk 0:02:32]} 14. h3 {[%clk 0:02:44]}  b4 {[%clk 0:02:23]} 15. Bc2 {[%clk 0:02:26]}  Rd7 {[%clk 0:01:56]} 16. Nc4 {[%clk 0:02:20]}  Re8 {[%clk 0:01:56]} 17. a5 {[%clk 0:02:19]}  Nh5 {[%clk 0:01:43]} 18. Ba4 {[%clk 0:02:09]}  f6 {[%clk 0:01:36]} 19. Nfd2 {[%clk 0:01:53]}  Nf4 {[%clk 0:01:30]} 20. Nb3 {[%clk 0:01:52]}  Nd3 {[%clk 0:01:20]} 21. Rf1 {[%clk 0:01:25]}  Red8 {[%clk 0:01:12]} 22. Be3 {[%clk 0:01:21]}  Bxe3 {[%clk 0:01:07]} 23. Nxe3 {[%clk 0:01:21]}  Nxb2 {[%clk 0:00:59]} 24. Nc5 {[%clk 0:01:18]}  Nxa4 {[%clk 0:00:44]} 25. Rxa4 {[%clk 0:01:16]}  Ba8 {[%clk 0:00:34]} 26. Nxd7 {[%clk 0:01:15]}  Rxd7 {[%clk 0:00:35]} 27. cxb4 {[%clk 0:01:15]}  Nd4 {[%clk 0:00:35]} 28. f3 {[%clk 0:01:14]}  Ne2+ {[%clk 0:00:32]} 29. Kf2 {[%clk 0:01:10]}  Nf4 {[%clk 0:00:28]} 30. Rd1 {[%clk 0:01:09]}  Rd4 {[%clk 0:00:20]} 31. Rxd4 {[%clk 0:01:06]}  exd4 {[%clk 0:00:21]} 32. Nf5 {[%clk 0:00:57]}  d3 {[%clk 0:00:11]} 33. Ra2 {[%clk 0:00:56]}  g6 {[%clk 0:00:10]} 34. Nd4 {[%clk 0:00:56]}  Kf7 {[%clk 0:00:07]} 35. Ke3 {[%clk 0:00:56]}  Ne6 {[%clk 0:00:06]} 36. Nxe6 {[%clk 0:00:55]}  Kxe6 {[%clk 0:00:06]} 37. Kxd3 {[%clk 0:00:55]}  Bc6 {[%clk 0:00:07]} 38. Rc2 {[%clk 0:00:54]}  Bb5+ {[%clk 0:00:08]} 39. Kd4 {[%clk 0:00:54]}  c6 {[%clk 0:00:09]} 40. f4 {[%clk 0:00:53]}  Kd6 {[%clk 0:00:09]} 41. g4 {[%clk 0:00:52]}  Bf1 {[%clk 0:00:08]} 42. h4 {[%clk 0:00:51]}  Bb5 {[%clk 0:00:08]} 43. g5 {[%clk 0:00:51]}  f5 {[%clk 0:00:08]} 44. exf5 {[%clk 0:00:50]}  gxf5 {[%clk 0:00:09]} 45. h5 {[%clk 0:00:50]}  Ke6 {[%clk 0:00:06]} 46. Rc3 {[%clk 0:00:48]}  Be2 {[%clk 0:00:05]} 47. Re3+ {[%clk 0:00:48]}  Kf7 {[%clk 0:00:04]} 48. Rxe2 {[%clk 0:00:48]} 1-0


[Site "https://www.chess.com"]